[Event "*** Titled Tuesday Blitz AM"]
[Site "Chess.com"]
[Date "2020.01.07"]
[Round "8"]
[White "KRASAVCHIK2002"]
[Black "korbul"]
[Result "1/2-1/2"]
[WhiteElo "2476"]
[BlackElo "2629"]
[TimeControl "180+2"]
[EndTime "10:51:56 PST"]
[Termination "Game drawn by repetition"]

1. e4 {[%clk 0:03:01.9]} 1... c5 {[%clk 0:03:00.2]} 2. Nf3 {[%clk 0:03:01.9]}
2... e6 {[%clk 0:03:00.6]} 3. c3 {[%clk 0:02:59.3]} 3... Nf6 {[%clk 0:03:00.8]}
4. e5 {[%clk 0:02:57.2]} 4... Nd5 {[%clk 0:03:02]} 5. g3 {[%clk 0:02:59]} 5...
g5 {[%clk 0:02:55.7]} 6. Bg2 {[%clk 0:02:37.3]} 6... g4 {[%clk 0:02:56.3]} 7.
Nh4 {[%clk 0:02:35.9]} 7... h5 {[%clk 0:02:56.8]} 8. O-O {[%clk 0:02:28.1]} 8...
Be7 {[%clk 0:02:56.9]} 9. Bxd5 {[%clk 0:02:25.5]} 9... exd5 {[%clk 0:02:49.5]}
10. Nf5 {[%clk 0:02:25.3]} 10... d6 {[%clk 0:02:36.5]} 11. Nxe7 {[%clk
0:02:14.4]} 11... Qxe7 {[%clk 0:02:32.1]} 12. exd6 {[%clk 0:02:16.3]} 12... Qxd6
{[%clk 0:02:33.1]} 13. Re1+ {[%clk 0:02:18.2]} 13... Be6 {[%clk 0:02:33.7]} 14.
Qa4+ {[%clk 0:02:10.9]} 14... Qc6 {[%clk 0:02:17.1]} 15. Qxc6+ {[%clk
0:02:04.5]} 15... Nxc6 {[%clk 0:02:17.7]} 16. d4 {[%clk 0:02:02.6]} 16... cxd4
{[%clk 0:02:17.3]} 17. Bf4 {[%clk 0:02:01.9]} 17... O-O {[%clk 0:02:09.9]} 18.
Rd1 {[%clk 0:01:41.7]} 18... dxc3 {[%clk 0:02:10.7]} 19. Nxc3 {[%clk 0:01:43.6]}
19... Rfd8 {[%clk 0:02:11.4]} 20. Rac1 {[%clk 0:01:38.9]} 20... d4 {[%clk
0:02:01.7]} 21. Nb5 {[%clk 0:01:40]} 21... Bxa2 {[%clk 0:01:57]} 22. Nd6 {[%clk
0:01:36.5]} 22... Rd7 {[%clk 0:01:51.7]} 23. Rc5 {[%clk 0:01:26.3]} 23... Rad8
{[%clk 0:01:41.9]} 24. Ne4 {[%clk 0:01:21.1]} 24... Rd5 {[%clk 0:00:47.9]} 25.
Nf6+ {[%clk 0:01:04.7]} 25... Kg7 {[%clk 0:00:48.5]} 26. Nxd5 {[%clk 0:01:06.6]}
26... Bxd5 {[%clk 0:00:47.6]} 27. Rxc6 {[%clk 0:01:07.9]} 27... Bxc6 {[%clk
0:00:47.3]} 28. Rxd4 {[%clk 0:01:09.3]} 28... Re8 {[%clk 0:00:43.2]} 29. Be3
{[%clk 0:01:07.5]} 29... Re5 {[%clk 0:00:36.1]} 30. h4 {[%clk 0:01:05.5]} 30...
Ra5 {[%clk 0:00:33.7]} 31. Kf1 {[%clk 0:00:47.8]} 31... Bf3 {[%clk 0:00:32.1]}
32. Ke1 {[%clk 0:00:46.5]} 32... Ra2 {[%clk 0:00:27.1]} 33. Rb4 {[%clk
0:00:42.6]} 33... Kf6 {[%clk 0:00:18.1]} 34. Rb5 {[%clk 0:00:34.3]} 34... Ra1+
{[%clk 0:00:16.4]} 35. Kd2 {[%clk 0:00:34.2]} 35... Kg6 {[%clk 0:00:17]} 36.
Rg5+ {[%clk 0:00:31.9]} 36... Kf6 {[%clk 0:00:18.2]} 37. Rxh5 {[%clk 0:00:29.5]}
37... a5 {[%clk 0:00:18.4]} 38. Kc3 {[%clk 0:00:28.8]} 38... a4 {[%clk
0:00:19.3]} 39. Kb4 {[%clk 0:00:26.9]} 39... Bc6 {[%clk 0:00:19.5]} 40. Bd4+
{[%clk 0:00:28.1]} 40... Ke6 {[%clk 0:00:20.2]} 41. Rg5 {[%clk 0:00:28.5]} 41...
f5 {[%clk 0:00:21.1]} 42. h5 {[%clk 0:00:26.1]} 42... Rd1 {[%clk 0:00:21.7]} 43.
Be3 {[%clk 0:00:23.6]} 43... Rh1 {[%clk 0:00:20.2]} 44. Bd4 {[%clk 0:00:22]}
44... Kd5 {[%clk 0:00:20.4]} 45. Be3 {[%clk 0:00:20.8]} 45... Ke4 {[%clk
0:00:21.7]} 46. Kc3 {[%clk 0:00:20.3]} 46... Bd5 {[%clk 0:00:18.6]} 47. Kb4
{[%clk 0:00:19.4]} 47... Rh3 {[%clk 0:00:14.4]} 48. Kxa4 {[%clk 0:00:17.3]}
48... Bc4 {[%clk 0:00:15]} 49. Kb4 {[%clk 0:00:16.3]} 49... b5 {[%clk
0:00:16.1]} 50. Ka5 {[%clk 0:00:16.1]} 50... Rh1 {[%clk 0:00:17]} 51. b4 {[%clk
0:00:16.8]} 51... Ra1+ {[%clk 0:00:17.3]} 52. Kb6 {[%clk 0:00:17.4]} 52... Rh1
{[%clk 0:00:19.1]} 53. Ka5 {[%clk 0:00:15.3]} 53... Ra1+ {[%clk 0:00:19.2]} 54.
Kb6 {[%clk 0:00:16.6]} 54... Rh1 {[%clk 0:00:21.1]} 55. Ka5 {[%clk 0:00:18]}
1/2-1/2

[Event "*** Titled Tuesday Blitz AM"]
[Site "Chess.com"]
[Date "2020.01.07"]
[Round "8"]
[White "JuliaEfremova"]
[Black "marabu44"]
[Result "1-0"]
[WhiteElo "2023"]
[BlackElo "2294"]
[TimeControl "180+2"]
[EndTime "10:51:56 PST"]
[Termination "JuliaEfremova won by resignation"]

1. d4 {[%clk 0:03:01.9]} 1... f5 {[%clk 0:02:58.8]} 2. Bf4 {[%clk 0:03:00.7]}
2... d6 {[%clk 0:02:57.2]} 3. Nf3 {[%clk 0:02:59.9]} 3... c6 {[%clk 0:02:57.7]}
4. e3 {[%clk 0:02:55.8]} 4... Nf6 {[%clk 0:02:58.1]} 5. Be2 {[%clk 0:02:52.8]}
5... Qc7 {[%clk 0:02:57.6]} 6. h3 {[%clk 0:02:52.8]} 6... Nbd7 {[%clk
0:02:58.3]} 7. Bh2 {[%clk 0:02:53.6]} 7... e5 {[%clk 0:02:59.2]} 8. O-O {[%clk
0:02:53.8]} 8... e4 {[%clk 0:02:54.2]} 9. Nfd2 {[%clk 0:02:53.5]} 9... Nb6
{[%clk 0:02:51]} 10. c4 {[%clk 0:02:53.5]} 10... Qf7 {[%clk 0:02:50.7]} 11. Nc3
{[%clk 0:02:52.8]} 11... Be7 {[%clk 0:02:49.8]} 12. b4 {[%clk 0:02:52.4]} 12...
O-O {[%clk 0:02:49.5]} 13. a4 {[%clk 0:02:52.3]} 13... Kh8 {[%clk 0:02:48.1]}
14. a5 {[%clk 0:02:51.7]} 14... Nbd7 {[%clk 0:02:47.7]} 15. b5 {[%clk
0:02:47.5]} 15... d5 {[%clk 0:02:41.3]} 16. bxc6 {[%clk 0:02:44.8]} 16... bxc6
{[%clk 0:02:42]} 17. c5 {[%clk 0:02:45.7]} 17... Rg8 {[%clk 0:02:27.9]} 18. a6
{[%clk 0:02:40.1]} 18... g5 {[%clk 0:02:26.7]} 19. Qa4 {[%clk 0:02:37]} 19...
Qe6 {[%clk 0:02:25.6]} 20. Nb3 {[%clk 0:02:33.7]} 20... Nf8 {[%clk 0:02:25]} 21.
Na5 {[%clk 0:02:33.8]} 21... Bd7 {[%clk 0:02:25.9]} 22. Rab1 {[%clk 0:02:34.1]}
22... Ng6 {[%clk 0:02:13.6]} 23. Nb7 {[%clk 0:02:19.6]} 23... f4 {[%clk
0:02:12.6]} 24. Rb2 {[%clk 0:02:07.8]} 24... g4 {[%clk 0:02:12.1]} 25. Bxf4
{[%clk 0:01:55.6]} 25... Nxf4 {[%clk 0:02:12.4]} 26. exf4 {[%clk 0:01:56.3]}
26... e3 {[%clk 0:02:02.2]} 27. Nd1 {[%clk 0:01:51.5]} 27... gxh3 {[%clk
0:02:00]} 28. g3 {[%clk 0:01:46.6]} 28... exf2+ {[%clk 0:01:59.9]} 29. Kxf2
{[%clk 0:01:47.2]} 29... Rxg3 {[%clk 0:01:59.6]} 30. Kxg3 {[%clk 0:01:43.1]}
30... Rg8+ {[%clk 0:01:46.4]} 31. Kf3 {[%clk 0:01:39]} 31... Rg2 {[%clk
0:01:39.1]} 32. Nc3 {[%clk 0:01:23.7]} 32... Nh5 {[%clk 0:01:32.9]} 33. Qc2
{[%clk 0:00:57.7]} 33... Qg4+ {[%clk 0:01:18.8]} 34. Ke3 {[%clk 0:00:55.5]}
34... Qg3+ {[%clk 0:00:36.5]} 35. Rf3 {[%clk 0:00:47.4]} 35... h2 {[%clk
0:00:35.9]} 36. Rb1 {[%clk 0:00:35.1]} 36... Qg7 {[%clk 0:00:31.2]} 37. Rh1
{[%clk 0:00:24]} 37... Ng3 {[%clk 0:00:31]} 38. Qd1 {[%clk 0:00:16.9]} 38...
Nxh1 {[%clk 0:00:27.1]} 39. Qxh1 {[%clk 0:00:17.1]} 39... Bg4 {[%clk 0:00:28]}
40. Qxg2 {[%clk 0:00:16.8]} 40... h1=Q {[%clk 0:00:27.5]} 41. Qxh1 {[%clk
0:00:17.3]} 41... Bf6 {[%clk 0:00:28.9]} 42. Rh3 {[%clk 0:00:16.7]} 42... Bxd4+
{[%clk 0:00:29.5]} 43. Kd2 {[%clk 0:00:17.6]} 43... Bxc3+ {[%clk 0:00:29.6]} 44.
Rxc3 {[%clk 0:00:18.5]} 44... Bxe2 {[%clk 0:00:30.5]} 45. Qh3 {[%clk 0:00:15.9]}
45... Bg4 {[%clk 0:00:28.6]} 46. Qe3 {[%clk 0:00:16.7]} 46... Qf7 {[%clk
0:00:27.9]} 47. Qe5+ {[%clk 0:00:17.1]} 47... Kg8 {[%clk 0:00:27.9]} 48. Rg3
{[%clk 0:00:19]} 48... h5 {[%clk 0:00:28.7]} 49. Nd6 {[%clk 0:00:19.2]} 49...
Qh7 {[%clk 0:00:29.4]} 50. Qg5+ {[%clk 0:00:19]} 50... Kf8 {[%clk 0:00:29.5]}
51. Qd8+ {[%clk 0:00:19.2]} 51... Kg7 {[%clk 0:00:29.7]} 52. Qe7+ {[%clk
0:00:19.9]} 52... Kh6 {[%clk 0:00:30.5]} 53. Qf6+ {[%clk 0:00:16.9]} 53... Qg6
{[%clk 0:00:31.7]} 54. Nf7+ {[%clk 0:00:17.5]} 54... Kh7 {[%clk 0:00:32.4]} 55.
Qxg6+ {[%clk 0:00:18.4]} 55... Kxg6 {[%clk 0:00:33.1]} 56. Ne5+ {[%clk
0:00:20.3]} 56... Kf5 {[%clk 0:00:34.3]} 57. Nxg4 {[%clk 0:00:21.2]} 57... hxg4
{[%clk 0:00:36.2]} 58. Ke3 {[%clk 0:00:22.2]} 58... d4+ {[%clk 0:00:37.5]} 59.
Kxd4 {[%clk 0:00:22.9]} 59... Kxf4 {[%clk 0:00:39.4]} 60. Rg1 {[%clk 0:00:23.8]}
60... Kf3 {[%clk 0:00:40.7]} 61. Ke5 {[%clk 0:00:24.6]} 61... g3 {[%clk
0:00:41.8]} 62. Kd6 {[%clk 0:00:25.1]} 62... Kf2 {[%clk 0:00:43.7]} 63. Rxg3
{[%clk 0:00:26]} 63... Kxg3 {[%clk 0:00:43.5]} 64. Kxc6 {[%clk 0:00:27.9]} 1-0

[Event "*** Titled Tuesday Blitz AM"]
[Site "Chess.com"]
[Date "2020.01.07"]
[Round "8"]
[White "cancrushyou"]
[Black "GremioPrudente"]
[Result "1-0"]
[WhiteElo "2463"]
[BlackElo "2274"]
[TimeControl "180+2"]
[EndTime "10:52:13 PST"]
[Termination "cancrushyou won on time"]

1. d4 {[%clk 0:03:01.2]} 1... d5 {[%clk 0:03:00.1]} 2. c4 {[%clk 0:02:59.2]}
2... c6 {[%clk 0:03:01.5]} 3. cxd5 {[%clk 0:02:57.4]} 3... cxd5 {[%clk 0:03:02]}
4. Bf4 {[%clk 0:02:58.8]} 4... Nf6 {[%clk 0:03:01.4]} 5. Nc3 {[%clk 0:02:59.5]}
5... e6 {[%clk 0:03:02.6]} 6. e3 {[%clk 0:02:59.8]} 6... Bd6 {[%clk 0:03:02.8]}
7. Bxd6 {[%clk 0:03:01]} 7... Qxd6 {[%clk 0:03:03.2]} 8. f4 {[%clk 0:03:02.9]}
8... O-O {[%clk 0:03:00.5]} 9. Nf3 {[%clk 0:03:03.3]} 9... b6 {[%clk 0:03:00.1]}
10. Bd3 {[%clk 0:03:03.1]} 10... Ba6 {[%clk 0:02:59.5]} 11. O-O {[%clk
0:03:02.4]} 11... Bxd3 {[%clk 0:02:59.2]} 12. Qxd3 {[%clk 0:03:04.3]} 12... Nbd7
{[%clk 0:02:56.1]} 13. Ne5 {[%clk 0:03:01.3]} 13... Rac8 {[%clk 0:02:50.3]} 14.
Rac1 {[%clk 0:03:01.7]} 14... Qb8 {[%clk 0:02:33.8]} 15. Qa6 {[%clk 0:02:51.8]}
15... Nxe5 {[%clk 0:02:30.4]} 16. fxe5 {[%clk 0:02:46.3]} 16... Ne4 {[%clk
0:02:28.1]} 17. Nb5 {[%clk 0:02:35.3]} 17... Nd2 {[%clk 0:01:52.8]} 18. Rfe1
{[%clk 0:02:33.4]} 18... Rxc1 {[%clk 0:01:46.8]} 19. Rxc1 {[%clk 0:02:35.3]}
19... Nc4 {[%clk 0:01:48]} 20. Qxa7 {[%clk 0:01:47.6]} 20... Qxa7 {[%clk
0:01:30.7]} 21. Nxa7 {[%clk 0:01:47.1]} 21... Nxb2 {[%clk 0:01:31.6]} 22. Nc8
{[%clk 0:01:39.6]} 22... Nc4 {[%clk 0:01:27.8]} 23. Nd6 {[%clk 0:01:28.8]} 23...
Nxe3 {[%clk 0:01:20.7]} 24. Rc6 {[%clk 0:01:15.6]} 24... Nc4 {[%clk 0:01:07.2]}
25. Nxc4 {[%clk 0:01:12.3]} 25... dxc4 {[%clk 0:01:08.5]} 26. Rxc4 {[%clk
0:01:05.4]} 26... f6 {[%clk 0:01:09]} 27. exf6 {[%clk 0:00:55.1]} 27... gxf6
{[%clk 0:01:04.1]} 28. Rc6 {[%clk 0:00:56.1]} 28... Ra8 {[%clk 0:00:58.1]} 29.
Rxe6 {[%clk 0:00:54]} 29... Kf7 {[%clk 0:00:52.9]} 30. Rxb6 {[%clk 0:00:54]}
30... Rxa2 {[%clk 0:00:54.5]} 31. Rb7+ {[%clk 0:00:51.9]} 31... Kg6 {[%clk
0:00:45.4]} 32. h3 {[%clk 0:00:53.1]} 32... Rd2 {[%clk 0:00:46.4]} 33. Rd7
{[%clk 0:00:53.2]} 33... h5 {[%clk 0:00:44.9]} 34. d5 {[%clk 0:00:44.3]} 34...
h4 {[%clk 0:00:45.1]} 35. d6 {[%clk 0:00:43.9]} 35... Kf5 {[%clk 0:00:42.3]} 36.
Rd8 {[%clk 0:00:43.1]} 36... Ke6 {[%clk 0:00:42.4]} 37. Re8+ {[%clk 0:00:38.5]}
37... Kf7 {[%clk 0:00:41.1]} 38. Re7+ {[%clk 0:00:37.7]} 38... Kf8 {[%clk
0:00:40.2]} 39. Re6 {[%clk 0:00:37.7]} 39... Kf7 {[%clk 0:00:39.2]} 40. Re7+
{[%clk 0:00:39.2]} 40... Kf8 {[%clk 0:00:40.3]} 41. Rh7 {[%clk 0:00:40.9]} 41...
Rxd6 {[%clk 0:00:36.4]} 42. Rxh4 {[%clk 0:00:42.4]} 42... Kg7 {[%clk 0:00:37.5]}
43. Kh2 {[%clk 0:00:42.7]} 43... Rd2 {[%clk 0:00:36.4]} 44. Rg4+ {[%clk
0:00:43.9]} 44... Kh7 {[%clk 0:00:35.3]} 45. Kg3 {[%clk 0:00:45.3]} 45... Ra2
{[%clk 0:00:32.2]} 46. Kf4 {[%clk 0:00:46.4]} 46... Ra5 {[%clk 0:00:33.1]} 47.
h4 {[%clk 0:00:42.7]} 47... Ra4+ {[%clk 0:00:18.8]} 48. Kf5 {[%clk 0:00:42.9]}
48... Rxg4 {[%clk 0:00:06.4]} 49. Kxg4 {[%clk 0:00:43.4]} 49... Kg6 {[%clk
0:00:08.3]} 50. g3 {[%clk 0:00:42.4]} 50... Kg7 {[%clk 0:00:07.9]} 51. Kf5
{[%clk 0:00:43]} 51... Kf7 {[%clk 0:00:09.2]} 52. h5 {[%clk 0:00:44.2]} 52...
Kg7 {[%clk 0:00:10.3]} 53. g4 {[%clk 0:00:45.7]} 53... Kf7 {[%clk 0:00:11.6]}
54. h6 {[%clk 0:00:47.1]} 54... Kf8 {[%clk 0:00:02.5]} 55. Kxf6 {[%clk
0:00:47.8]} 55... Kg8 {[%clk 0:00:04.4]} 56. g5 {[%clk 0:00:49.2]} 56... Kh8
{[%clk 0:00:06]} 57. g6 {[%clk 0:00:50.3]} 57... Kg8 {[%clk 0:00:07.9]} 58. h7+
{[%clk 0:00:51.7]} 58... Kh8 {[%clk 0:00:08.5]} 59. g7+ {[%clk 0:00:53.3]} 59...
Kxh7 {[%clk 0:00:09.5]} 60. Kf7 {[%clk 0:00:55.2]} 60... Kh6 {[%clk 0:00:09.2]}
61. g8=Q {[%clk 0:00:57.1]} 1-0

[Event "*** Titled Tuesday Blitz AM"]
[Site "Chess.com"]
[Date "2020.01.07"]
[Round "8"]
[White "enriquetejedor"]
[Black "Rainbow2014"]
[Result "1-0"]
[WhiteElo "2474"]
[BlackElo "2285"]
[TimeControl "180+2"]
[EndTime "10:52:21 PST"]
[Termination "enriquetejedor won by resignation"]

1. e4 {[%clk 0:02:44.9]} 1... c5 {[%clk 0:03:00.2]} 2. Nc3 {[%clk 0:02:38.4]}
2... e6 {[%clk 0:03:00.6]} 3. g3 {[%clk 0:02:31.7]} 3... a6 {[%clk 0:03:00.6]}
4. Bg2 {[%clk 0:02:32.6]} 4... b5 {[%clk 0:02:55.1]} 5. d3 {[%clk 0:02:32.4]}
5... Bb7 {[%clk 0:02:51.5]} 6. f4 {[%clk 0:02:32.5]} 6... b4 {[%clk 0:02:52.1]}
7. Nce2 {[%clk 0:02:33.2]} 7... Nc6 {[%clk 0:02:49.6]} 8. Nf3 {[%clk 0:02:33.6]}
8... d6 {[%clk 0:02:37.7]} 9. O-O {[%clk 0:02:34]} 9... Nf6 {[%clk 0:02:37.6]}
10. h3 {[%clk 0:02:34.2]} 10... h5 {[%clk 0:02:35.3]} 11. f5 {[%clk 0:02:25.7]}
11... e5 {[%clk 0:02:27.7]} 12. Nh2 {[%clk 0:02:12.9]} 12... Be7 {[%clk
0:02:22.6]} 13. g4 {[%clk 0:02:12.1]} 13... hxg4 {[%clk 0:02:20.8]} 14. hxg4
{[%clk 0:02:14]} 14... Nd7 {[%clk 0:01:54.7]} 15. Nf3 {[%clk 0:02:09.4]} 15...
Nd4 {[%clk 0:01:52.2]} 16. Kf2 {[%clk 0:01:49.4]} 16... Qb6 {[%clk 0:01:34.4]}
17. Be3 {[%clk 0:01:36.4]} 17... g6 {[%clk 0:00:46]} 18. Ng3 {[%clk 0:01:29.5]}
18... Nf6 {[%clk 0:00:45.1]} 19. Nd2 {[%clk 0:01:24.3]} 19... Rh4 {[%clk
0:00:45.2]} 20. Nc4 {[%clk 0:01:21.6]} 20... Qc7 {[%clk 0:00:40.5]} 21. Bf3
{[%clk 0:01:13.7]} 21... d5 {[%clk 0:00:41.8]} 22. Nd2 {[%clk 0:01:06.4]} 22...
c4 {[%clk 0:00:21.3]} 23. Rh1 {[%clk 0:00:43.9]} 23... Rxh1 {[%clk 0:00:19.9]}
24. Bxh1 {[%clk 0:00:42.6]} 24... O-O-O {[%clk 0:00:18.5]} 25. g5 {[%clk
0:00:38.9]} 25... Nh5 {[%clk 0:00:17.5]} 26. Nxh5 {[%clk 0:00:37.8]} 26... gxh5
{[%clk 0:00:19.4]} 27. f6 {[%clk 0:00:34.3]} 27... Bc5 {[%clk 0:00:19]} 28. dxc4
{[%clk 0:00:25.8]} 28... dxc4 {[%clk 0:00:18.9]} 29. Nxc4 {[%clk 0:00:16.4]}
29... Ne6 {[%clk 0:00:19.8]} 30. Qf1 {[%clk 0:00:06.3]} 30... Nxg5 {[%clk
0:00:19]} 31. Rd1 {[%clk 0:00:04.6]} 31... Nxe4+ {[%clk 0:00:18.3]} 32. Bxe4
{[%clk 0:00:05]} 32... Bxe4 {[%clk 0:00:20.2]} 33. Rxd8+ {[%clk 0:00:04.7]}
33... Kxd8 {[%clk 0:00:19.6]} 34. Bxc5 {[%clk 0:00:05.6]} 34... Qxc5+ {[%clk
0:00:20]} 35. Ne3 {[%clk 0:00:07.5]} 35... Bb7 {[%clk 0:00:20.1]} 36. Qd1+
{[%clk 0:00:08.2]} 36... Kc7 {[%clk 0:00:20.6]} 37. Qxh5 {[%clk 0:00:09.2]}
37... Qf8 {[%clk 0:00:18.4]} 38. Qxe5+ {[%clk 0:00:09.8]} 38... Kc8 {[%clk
0:00:18.8]} 39. Nf5 {[%clk 0:00:10]} 39... Bc6 {[%clk 0:00:17.9]} 40. Ne7+
{[%clk 0:00:10.1]} 40... Kb7 {[%clk 0:00:18.7]} 41. Qd6 {[%clk 0:00:10.2]} 41...
Bb5 {[%clk 0:00:17.3]} 42. Qd5+ {[%clk 0:00:05.8]} 42... Ka7 {[%clk 0:00:16.9]}
43. Qc5+ {[%clk 0:00:06.6]} 43... Kb7 {[%clk 0:00:18]} 44. Qxb4 {[%clk
0:00:05.1]} 44... Qh6 {[%clk 0:00:18.2]} 45. Qe4+ {[%clk 0:00:05.1]} 45... Ka7
{[%clk 0:00:17.6]} 46. Qe3+ {[%clk 0:00:05.8]} 46... Qxe3+ {[%clk 0:00:17.5]}
47. Kxe3 {[%clk 0:00:07.7]} 47... Bc4 {[%clk 0:00:18.2]} 48. b3 {[%clk
0:00:08.2]} 48... Be6 {[%clk 0:00:19.5]} 49. c4 {[%clk 0:00:09.4]} 49... Kb6
{[%clk 0:00:20.5]} 50. Kd4 {[%clk 0:00:10.9]} 50... Ka5 {[%clk 0:00:21.6]} 51.
Nd5 {[%clk 0:00:12.8]} 51... Bf5 {[%clk 0:00:18.4]} 52. a3 {[%clk 0:00:13.5]}
52... Bc2 {[%clk 0:00:18.7]} 53. Kc3 {[%clk 0:00:12.8]} 53... Bxb3 {[%clk
0:00:18.9]} 54. Ne7 {[%clk 0:00:04.3]} 54... Ka4 {[%clk 0:00:19.9]} 55. Nf5
{[%clk 0:00:04.4]} 55... Kxa3 {[%clk 0:00:21]} 56. Nd6 {[%clk 0:00:05.6]} 56...
a5 {[%clk 0:00:21.5]} 57. Nxf7 {[%clk 0:00:05.6]} 57... a4 {[%clk 0:00:22.9]}
58. Nd6 {[%clk 0:00:06.9]} 58... Ka2 {[%clk 0:00:23.3]} 59. f7 {[%clk
0:00:07.5]} 59... a3 {[%clk 0:00:22.3]} 60. f8=Q {[%clk 0:00:08.7]} 60... Kb1
{[%clk 0:00:23.3]} 61. Kxb3 {[%clk 0:00:09.4]} 1-0

[Event "*** Titled Tuesday Blitz AM"]
[Site "Chess.com"]
[Date "2020.01.07"]
[Round "8"]
[White "sganerdene"]
[Black "Gogolev_Artemy"]
[Result "1-0"]
[WhiteElo "2650"]
[BlackElo "2443"]
[TimeControl "180+2"]
[EndTime "10:52:26 PST"]
[Termination "sganerdene won by checkmate"]

1. e4 {[%clk 0:03:01.9]} 1... c6 {[%clk 0:02:55.5]} 2. Nf3 {[%clk 0:03:01.9]}
2... d5 {[%clk 0:02:56.7]} 3. Nc3 {[%clk 0:03:03.3]} 3... Nf6 {[%clk 0:02:55.8]}
4. e5 {[%clk 0:03:03.4]} 4... Ne4 {[%clk 0:02:57.2]} 5. d4 {[%clk 0:03:03.1]}
5... Nxc3 {[%clk 0:02:56.6]} 6. bxc3 {[%clk 0:03:03.9]} 6... c5 {[%clk
0:02:55.5]} 7. Bd3 {[%clk 0:03:00.4]} 7... Nc6 {[%clk 0:02:54.3]} 8. O-O {[%clk
0:03:01.3]} 8... Bg4 {[%clk 0:02:54]} 9. Rb1 {[%clk 0:02:55.3]} 9... Qc7 {[%clk
0:02:51.2]} 10. h3 {[%clk 0:02:49.6]} 10... Bxf3 {[%clk 0:02:50.5]} 11. Qxf3
{[%clk 0:02:50.8]} 11... e6 {[%clk 0:02:51.5]} 12. Be3 {[%clk 0:02:42.5]} 12...
c4 {[%clk 0:02:46.6]} 13. Be2 {[%clk 0:02:42.8]} 13... Be7 {[%clk 0:02:47.8]}
14. Qg4 {[%clk 0:02:41.7]} 14... g6 {[%clk 0:02:42.1]} 15. Bh6 {[%clk
0:02:41.8]} 15... O-O-O {[%clk 0:02:40]} 16. Qf3 {[%clk 0:02:38.4]} 16... Bf8
{[%clk 0:02:39.9]} 17. Bc1 {[%clk 0:02:34.3]} 17... h5 {[%clk 0:02:36]} 18. a4
{[%clk 0:02:22.7]} 18... Bh6 {[%clk 0:02:34.1]} 19. Ba3 {[%clk 0:02:23.3]} 19...
Bf8 {[%clk 0:02:34.9]} 20. Bb2 {[%clk 0:02:10.2]} 20... Bh6 {[%clk 0:02:18.6]}
21. Ra1 {[%clk 0:02:05]} 21... Rdg8 {[%clk 0:02:18.8]} 22. Rfb1 {[%clk
0:02:03.6]} 22... Bf8 {[%clk 0:02:17.5]} 23. Qe3 {[%clk 0:01:56]} 23... g5
{[%clk 0:02:16.5]} 24. g3 {[%clk 0:01:50.5]} 24... g4 {[%clk 0:01:59.6]} 25.
hxg4 {[%clk 0:01:51.6]} 25... hxg4 {[%clk 0:01:58.9]} 26. Bf1 {[%clk 0:01:20]}
26... Rh5 {[%clk 0:01:55.8]} 27. Qe2 {[%clk 0:01:14.8]} 27... Rgh8 {[%clk
0:01:46.6]} 28. Bg2 {[%clk 0:01:15.7]} 28... Nd8 {[%clk 0:01:28.4]} 29. Qxg4
{[%clk 0:01:12.6]} 29... f5 {[%clk 0:01:29.2]} 30. exf6 {[%clk 0:01:11.8]} 30...
Qh7 {[%clk 0:01:30.7]} 31. Kf1 {[%clk 0:01:09]} 31... Qxc2 {[%clk 0:01:25.7]}
32. Kg1 {[%clk 0:00:49.6]} 32... Qh7 {[%clk 0:01:18.3]} 33. Kf1 {[%clk
0:00:40.6]} 33... Qc2 {[%clk 0:01:12.7]} 34. Bc1 {[%clk 0:00:37.4]} 34... Rf5
{[%clk 0:01:01.7]} 35. Be3 {[%clk 0:00:35.8]} 35... Qxc3 {[%clk 0:00:56.7]} 36.
Kg1 {[%clk 0:00:31.4]} 36... Rxf6 {[%clk 0:00:53.6]} 37. Bxd5 {[%clk 0:00:28.7]}
37... Bd6 {[%clk 0:00:41.7]} 38. Rc1 {[%clk 0:00:28.6]} 38... Qa5 {[%clk
0:00:32]} 39. Rxc4+ {[%clk 0:00:25.8]} 39... Kb8 {[%clk 0:00:33]} 40. Bg2 {[%clk
0:00:26.9]} 40... Rf7 {[%clk 0:00:15.4]} 41. Rb1 {[%clk 0:00:27.1]} 41... Rc7
{[%clk 0:00:15.2]} 42. Rxc7 {[%clk 0:00:27.6]} 42... Bxc7 {[%clk 0:00:16.5]} 43.
Qe4 {[%clk 0:00:28.3]} 43... Qa6 {[%clk 0:00:15.5]} 44. Bf1 {[%clk 0:00:28.2]}
44... Qd6 {[%clk 0:00:15.9]} 45. Bg2 {[%clk 0:00:28]} 45... Rf8 {[%clk
0:00:15.3]} 46. Rxb7+ {[%clk 0:00:27.7]} 46... Kc8 {[%clk 0:00:16.2]} 47. Rxa7
{[%clk 0:00:26.1]} 47... Qb4 {[%clk 0:00:14.9]} 48. Ra8+ {[%clk 0:00:24.7]}
48... Kd7 {[%clk 0:00:15.7]} 49. Kf1 {[%clk 0:00:09.6]} 49... Qc4+ {[%clk
0:00:14.5]} 50. Ke1 {[%clk 0:00:10.8]} 50... Rf5 {[%clk 0:00:13.9]} 51. Bh3
{[%clk 0:00:08.5]} 51... Rh5 {[%clk 0:00:13.8]} 52. Qg4 {[%clk 0:00:08.9]} 52...
Rh7 {[%clk 0:00:10.1]} 53. Qg8 {[%clk 0:00:09.1]} 53... Rxh3 {[%clk 0:00:10.3]}
54. Qg7+ {[%clk 0:00:10.4]} 54... Kc6 {[%clk 0:00:11.4]} 55. Kd2 {[%clk
0:00:09.3]} 55... Qa2+ {[%clk 0:00:11.7]} 56. Kc3 {[%clk 0:00:10.1]} 56... Rh5
{[%clk 0:00:11.7]} 57. Ra6+ {[%clk 0:00:10.7]} 57... Kb7 {[%clk 0:00:12.5]} 58.
Ra7+ {[%clk 0:00:10.5]} 58... Kxa7 {[%clk 0:00:12.2]} 59. Qxc7+ {[%clk
0:00:11.8]} 59... Nb7 {[%clk 0:00:13.8]} 60. d5+ {[%clk 0:00:13]} 60... Ka8
{[%clk 0:00:15.1]} 61. Qc8# {[%clk 0:00:13.9]} 1-0